fUST/lending_fUST_20250214
["ID","MTS","AMOUNT","RATE_DAILY","PERIOD"]
[353029067,1739494242142,-913.72,0.00014027,2]
[353029068,1739494242152,-500.0,0.00014027,2]
[353029069,1739494242161,-500.0,0.00014027,2]
[353029070,1739494242172,-500.0,0.00014027,2]
[353029071,1739494242182,-1528.72,0.00014027,2]
[353029072,1739494242191,-500.0,0.00014027,2]
[353029073,1739494242201,-500.0,0.00014027,2]
[353029074,1739494242210,-1215.65,0.00014027,2]
[353029075,1739494242219,-500.0,0.00014027,2]
[353029076,1739494242229,-547.91,0.00014027,2]
[353029077,1739494242238,-500.0,0.00014027,2]
[353029078,1739494242248,-212.94496433,0.00014027,2]
[353029079,1739494242258,-4766.3,0.00014027,2]
[353029080,1739494242268,-1581.9,0.00014027,2]
[353029081,1739494242278,-1199.03,0.00014027,2]
[353029082,1739494242287,-500.0,0.00014027,2]
[353029083,1739494242297,-2635.6,0.00014027,2]
[353029084,1739494242306,-500.0,0.000141,2]
[353029085,1739494242316,-1000.0,0.00014109,2]
[353029086,1739494242325,-500.0,0.00014109,2]
[353029087,1739494242334,-500.0,0.00014109,2]
[353029088,1739494242344,-3826.03,0.00014109,2]
[353029089,1739494242353,-155.95,0.00014109,2]
[353029090,1739494242363,-1178.66,0.00014109,2]
[353029091,1739494242372,-943.39,0.00014109,2]
[353029092,1739494242381,-15890.92,0.00014109,2]
[353029093,1739494242391,-500.0,0.00014109,2]
[353029094,1739494242400,-1228.0,0.00014109,2]
[353029095,1739494242411,-500.0,0.00014109,2]
[353029096,1739494242422,-500.0,0.00014109,2]
[353029097,1739494242431,-651.81,0.00014109,2]
[353029098,1739494242441,-500.0,0.00014109,2]
[353029099,1739494242450,-1068.83,0.00014109,2]
[353029100,1739494242460,-913.72,0.00014109,2]
[353029101,1739494242470,-500.0,0.00014109,2]
[353029102,1739494242479,-500.0,0.00014109,2]
[353029103,1739494242489,-500.0,0.00014109,2]
[353029104,1739494242505,-1528.72,0.00014109,2]
[353029105,1739494242515,-500.0,0.00014109,2]
[353029106,1739494242525,-500.0,0.00014109,2]
[353029107,1739494242535,-1215.65,0.00014109,2]
[353029108,1739494242545,-500.0,0.00014109,2]
[353029109,1739494242554,-547.91,0.00014109,2]
[353029110,1739494242564,-500.0,0.00014109,2]
[353029111,1739494242575,-4766.3,0.00014109,2]
[353029112,1739494242584,-1581.9,0.00014109,2]
[353029113,1739494242593,-1199.03,0.00014109,2]
[353029114,1739494242603,-500.0,0.00014109,2]
[353029115,1739494242612,-2635.6,0.00014109,2]
[353029116,1739494242621,-153.86449221,0.00014112,2]
[353029117,1739494242630,-11412.66700136,0.00014125,2]
[353029118,1739494242640,-500.0,0.0001413,2]
[353029119,1739494242649,-168.25935201,0.00014137,2]
[353029120,1739494242658,-322.71724852,0.00014191,2]
[353029121,1739494242670,-500.0,0.00014191,2]
[353029122,1739494242679,-500.0,0.00014191,2]
[353029123,1739494242688,-3826.03,0.00014191,2]
[353029124,1739494242697,-1178.66,0.00014191,2]
[353029125,1739494242706,-943.39,0.00014191,2]
[353029126,1739494242715,-15890.92,0.00014191,2]
[353029127,1739494242724,-500.0,0.00014191,2]
[353029128,1739494242735,-1228.0,0.00014191,2]
[353029129,1739494242752,-500.0,0.00014191,2]
[353029130,1739494242762,-500.0,0.00014191,2]
[353029131,1739494242771,-651.81,0.00014191,2]
[353029132,1739494242780,-645.04,0.00014191,2]
[353029133,1739494242791,-1068.83,0.00014191,2]
[353029134,1739494242801,-913.72,0.00014191,2]
[353029135,1739494242810,-500.0,0.00014191,2]
[353029136,1739494242820,-500.0,0.00014191,2]
[353029137,1739494242829,-500.0,0.00014191,2]
[353029139,1739494242839,-1528.72,0.00014191,2]
[353029140,1739494242847,-500.0,0.00014191,2]
[353029142,1739494242857,-500.0,0.00014191,2]
[353029143,1739494242866,-1215.65,0.00014191,2]
[353029145,1739494242875,-500.0,0.00014191,2]
[353029146,1739494242884,-547.91,0.00014191,2]
[353029147,1739494242894,-474.52,0.00014191,2]
[353029148,1739494242903,-4766.3,0.00014191,2]
[353029149,1739494242913,-1581.9,0.00014191,2]
[353029150,1739494242922,-1199.03,0.00014191,2]
[353029152,1739494242931,-500.0,0.00014191,2]
[353029153,1739494242940,-2635.6,0.00014191,2]
[353029154,1739494242949,-1000.0,0.00014196,2]
[353029155,1739494242958,-400.418,0.00014199,2]
[353029156,1739494242968,-359.94672,0.00014215,2]
[353029157,1739494242977,-1000.0,0.00014251,2]
[353029158,1739494242986,-564.5317436,0.00014254,2]
[353029159,1739494242995,-153.86449221,0.00014256,2]
[353029160,1739494243004,-1000.0,0.00014266,2]
[353029161,1739494243014,-500.0,0.00014267,2]
[353029162,1739494243023,-500.0,0.00014273,2]
[353029163,1739494243032,-500.0,0.00014273,2]
[353029164,1739494243041,-3826.03,0.00014273,2]
[353029165,1739494243050,-1178.66,0.00014273,2]
[353029166,1739494243059,-943.39,0.00014273,2]
[353029168,1739494243068,-15890.92,0.00014273,2]
[353029170,1739494243078,-500.0,0.00014273,2]
[353029171,1739494243087,-1228.0,0.00014273,2]
[353029172,1739494243096,-500.0,0.00014273,2]
[353029173,1739494243106,-500.0,0.00014273,2]
[353029174,1739494243115,-651.81,0.00014273,2]
[353029175,1739494243125,-1068.83,0.00014273,2]
[353029176,1739494243134,-913.72,0.00014273,2]
[353029177,1739494243143,-244.46,0.00014273,2]
[353029178,1739494243153,-500.0,0.00014273,2]
[353029179,1739494243163,-184.06,0.00014273,2]
[353029180,1739494243172,-1528.72,0.00014273,2]
[353029181,1739494243181,-500.0,0.00014273,2]
[353029182,1739494243191,-500.0,0.00014273,2]
[353029183,1739494243202,-1215.65,0.00014273,2]
[353029184,1739494243211,-500.0,0.00014273,2]
[353029185,1739494243221,-547.91,0.00014273,2]
[353029186,1739494243231,-4766.3,0.00014273,2]
[353029187,1739494243240,-1581.9,0.00014273,2]
[353029188,1739494243250,-1199.03,0.00014273,2]
[353029189,1739494243260,-500.0,0.00014273,2]
[353029190,1739494243270,-2635.6,0.00014273,2]
[353029191,1739494243279,-809.76407656,0.00014276,2]
[353029192,1739494243289,-151.1005543,0.00014282,2]
[353029193,1739494243299,-1000.0,0.00014288,2]
[353029194,1739494243309,-2028.68954273,0.00014298,2]
[353029195,1739494243319,-200.0,0.000143,7]
[353029196,1739494243328,-200.0,0.000143,7]
[353029197,1739494243338,-200.0,0.000143,7]
[353029198,1739494243348,-200.0,0.000143,6]
[353029199,1739494243357,-200.0,0.000143,6]
[353029200,1739494243367,-200.0,0.000143,6]
[353029201,1739494243377,-200.0,0.000143,5]
[353029202,1739494243387,-200.0,0.000143,5]
[353029203,1739494243397,-200.0,0.000143,5]
[353029204,1739494243407,-200.0,0.000143,4]
[353029205,1739494243418,-200.0,0.000143,4]
[353029206,1739494243429,-200.0,0.000143,3]
[353029207,1739494243441,-200.0,0.000143,3]
[353029208,1739494243451,-200.0,0.000143,10]
[353029209,1739494243461,-200.0,0.000143,10]
[353029210,1739494243472,-218.0,0.000143,10]
[353029211,1739494243482,-1000.0,0.00014308,2]
[353029212,1739494243492,-500.0,0.00014356,2]
[353029213,1739494243501,-500.0,0.00014356,2]
[353029214,1739494243512,-3826.03,0.00014356,2]
[353029215,1739494243521,-1178.66,0.00014356,2]
[353029216,1739494243531,-943.39,0.00014356,2]
[353029217,1739494243541,-15890.92,0.00014356,2]
[353029218,1739494243551,-500.0,0.00014356,2]
[353029219,1739494243560,-1228.0,0.00014356,2]
[353029220,1739494243569,-500.0,0.00014356,2]
[353029221,1739494243579,-500.0,0.00014356,2]
[353029222,1739494243588,-651.81,0.00014356,2]
[353029223,1739494243598,-1068.83,0.00014356,2]
[353029224,1739494243607,-913.72,0.00014356,2]
[353029225,1739494243617,-500.0,0.00014356,2]
[353029226,1739494243626,-1528.72,0.00014356,2]
[353029227,1739494243635,-500.0,0.00014356,2]
[353029228,1739494243644,-500.0,0.00014356,2]
[353029229,1739494243654,-1215.65,0.00014356,2]
[353029230,1739494243663,-500.0,0.00014356,2]
[353029231,1739494243672,-547.91,0.00014356,2]
[353029232,1739494243682,-4766.3,0.00014356,2]
[353029233,1739494243691,-1581.9,0.00014356,2]
[353029234,1739494243700,-1199.03,0.00014356,2]
[353029235,1739494243710,-500.0,0.00014356,2]
[353029236,1739494243719,-2635.6,0.00014356,2]
[353029237,1739494243729,-1100.0,0.00014363,2]
[353029238,1739494243740,-538.0,0.0001437,2]
[353029239,1739494243751,-1975.0,0.0001437,2]
[353029240,1739494243760,-2296.0,0.0001437,2]
[353029241,1739494243770,-238.722,0.0001437,2]
[353029242,1739494243779,-396.0,0.0001437,2]
[353029243,1739494243789,-500.0,0.00014373,2]
[353029244,1739494243799,-189.54169697,0.00014397,2]
[353029245,1739494243808,-500.0,0.00014397,2]
[353029246,1739494243818,-500.0,0.00014397,2]
[353029247,1739494243827,-286.05228195,0.00014397,2]
[353029248,1739494243837,-500.0,0.00014397,2]
[353029249,1739494243846,-500.0,0.00014397,2]
[353029250,1739494243855,-289.38353378,0.00014397,2]
[353029251,1739494243865,-268596.43783667,0.00014398,7]
[353029252,1739494243885,-647.4,0.00014398,7]
[353029253,1739494243972,-98208.42344208,0.00014398,7]
[353029254,1739494243987,-151870.93509567,0.00014398,7]
[353029265,1739495153997,3009.39067596,8.843e-05,2]
[353029266,1739495204133,-180.12698547,0.00010685,2]
[353029306,1739495432716,-198.46883553,0.00010685,2]
[353029307,1739495432726,-641.84588247,0.00012993,2]
[353029312,1739495438427,-358.15411753,0.00012993,2]
[353029313,1739495438436,-183.48359096,0.0001368,2]
[353029315,1739495438446,-300.0,0.00013697,2]
[353029316,1739495438455,-500.0,0.00013698,2]
[353029317,1739495438466,-500.0,0.00013698,2]
[353029318,1739495438476,-66.50125738,0.00013698,2]
[353029319,1739495438488,-433.49874262,0.00013698,2]
[353029320,1739495438498,-514.05433313,0.00013698,2]
[353029321,1739495438507,-500.0,0.00013698,2]
[353029322,1739495438517,-500.0,0.00013698,2]
[353029323,1739495438526,-604.31766378,0.00013698,2]
[353029324,1739495438536,-500.0,0.00013698,2]
[353029325,1739495438545,-500.0,0.00013698,2]
[353029326,1739495438555,-500.0,0.00013698,2]
[353029327,1739495438564,-500.0,0.00013698,2]
[353029328,1739495438574,-500.0,0.00013698,2]
[353029329,1739495438584,-500.0,0.00013698,2]
[353029330,1739495438594,-500.0,0.00013698,2]
[353029331,1739495438604,-500.0,0.00013698,2]
[353029332,1739495438614,-500.0,0.00013698,2]
[353029333,1739495438625,-500.0,0.00013698,2]
[353029334,1739495438635,-500.0,0.00013698,2]
[353029335,1739495438644,-1000.0,0.00013698,2]
[353029336,1739495438654,-597.86592627,0.00013698,2]
[353029337,1739495438663,-500.0,0.00013698,2]
[353029338,1739495438674,-500.0,0.00013698,2]
[353029339,1739495438683,-581.26,0.00013698,2]
[353029340,1739495438693,-399.43687546,0.00013698,2]
[353029341,1739495438702,-1080.44,0.00013698,2]
[353029342,1739495438712,-500.0,0.00013698,2]
[353029343,1739495438723,-500.0,0.00013698,2]
[353029344,1739495438733,-351.7043,0.00013698,2]
[353029345,1739495438742,-500.0,0.00013698,2]
[353029346,1739495438752,-500.0,0.00013698,2]
[353029347,1739495438762,-500.0,0.00013698,2]
[353029348,1739495438772,-500.0,0.00013698,2]
[353029349,1739495438781,-2796.01,0.00013698,2]
[353029350,1739495438792,-1240.46,0.00013698,2]
[353029351,1739495438802,-4077.5,0.00013698,2]
[353029352,1739495438811,-500.0,0.00013698,2]
[353029353,1739495438820,-531.17,0.00013698,2]
[353029354,1739495438830,-500.0,0.00013698,2]
[353029355,1739495438839,-314.98050377,0.00013698,2]
[353029356,1739495438849,-500.0,0.00013698,2]
[353029357,1739495438858,-500.0,0.00013698,2]
[353029358,1739495438868,-500.0,0.00013698,2]
[353029359,1739495438877,-1001.96,0.00013698,2]
[353029360,1739495438888,-500.0,0.00013698,2]
[353029361,1739495438897,-16817.17,0.00013698,2]
[353029362,1739495438907,-500.0,0.00013698,2]
[353029363,1739495438919,-500.0,0.00013698,2]
[353029364,1739495438929,-500.0,0.00013698,2]
[353029365,1739495438941,-500.0,0.00013698,2]
[353029366,1739495438953,-500.0,0.00013698,2]
[353029367,1739495439097,-500.0,0.00013698,2]
[353029368,1739495439107,-500.0,0.00013698,2]
[353029369,1739495439119,-500.0,0.00013698,2]
[353029370,1739495439128,-500.0,0.00013698,2]
[353029371,1739495439138,-500.0,0.00013698,2]
[353029372,1739495439150,-500.0,0.00013698,2]
[353029373,1739495439160,-217.28918862,0.00013698,2]
[353029374,1739495439170,-643.77,0.00013698,2]
[353029375,1739495439182,-643.77,0.00013698,2]
[353029376,1739495439191,-643.77,0.00013698,2]
[353029377,1739495439201,-697.07,0.00013698,2]
[353029378,1739495439211,-500.0,0.00013698,2]
[353029379,1739495439222,-500.0,0.00013698,2]
[353029380,1739495439231,-500.0,0.00013698,2]
[353029381,1739495439241,-500.0,0.00013698,2]
[353029382,1739495439251,-1138.5,0.00013698,2]
[353029383,1739495439264,-500.0,0.00013698,2]
[353029384,1739495439274,-500.0,0.00013698,2]
[353029385,1739495439284,-500.0,0.00013698,2]
[353029386,1739495439294,-974.22,0.00013698,2]
[353029387,1739495439303,-500.0,0.00013698,2]
[353029388,1739495439313,-640.83,0.00013698,2]
[353029389,1739495439322,-500.0,0.00013698,2]
[353029390,1739495439331,-365.54549456,0.00013698,2]
[353029391,1739495439341,-500.0,0.00013698,2]
[353029392,1739495439351,-500.0,0.00013698,2]
[353029393,1739495439361,-1634.88,0.00013698,2]
[353029394,1739495439371,-401.11,0.00013698,2]
[353029395,1739495439380,-500.0,0.00013698,2]
[353029396,1739495439390,-500.0,0.00013698,2]
[353029397,1739495439402,-500.0,0.00013698,2]
[353029398,1739495439411,-500.0,0.00013698,2]
[353029399,1739495439421,-500.0,0.00013698,2]
[353029400,1739495439430,-500.0,0.00013698,2]
[353029401,1739495439439,-1295.44,0.00013698,2]
[353029402,1739495439448,-500.0,0.00013698,2]
[353029403,1739495439458,-500.0,0.00013698,2]
[353029404,1739495439467,-500.0,0.00013698,2]
[353029405,1739495439478,-500.0,0.00013698,2]
[353029406,1739495439487,-583.64,0.00013698,2]
[353029407,1739495439497,-5534.7,0.00013698,2]
[353029408,1739495439506,-500.0,0.00013698,2]
[353029409,1739495439515,-500.0,0.00013698,2]
[353029410,1739495439525,-500.0,0.00013698,2]
[353029411,1739495439534,-500.0,0.00013698,2]
[353029412,1739495439543,-500.0,0.00013698,2]
[353029413,1739495439553,-500.0,0.00013698,2]
[353029414,1739495439562,-537.23214845,0.00013698,2]
[353029415,1739495439571,-1419.57,0.00013698,2]
[353029416,1739495439581,-1419.57,0.00013698,2]
[353029417,1739495439591,-1419.57,0.00013698,2]
[353029418,1739495439600,-1419.57,0.00013698,2]
[353029419,1739495439609,-500.0,0.00013698,2]
[353029420,1739495439619,-500.0,0.00013698,2]
[353029421,1739495439628,-354.34902413,0.00013698,2]
[353029422,1739495439638,-500.0,0.00013698,2]
[353029423,1739495439647,-1149.07,0.00013698,2]
[353029424,1739495439657,-500.0,0.00013698,2]
[353029425,1739495439666,-1685.87,0.00013698,2]
[353029426,1739495439676,-500.0,0.00013698,2]
[353029427,1739495439686,-500.0,0.00013698,2]
[353029428,1739495439695,-1063.379555,0.00013699,2]
[353029429,1739495439705,-260.129609,0.00013699,2]
[353029430,1739495439714,-150.71,0.000137,2]
[353029431,1739495439723,-150.71,0.000137,2]
[353029432,1739495439732,-150.71,0.000137,2]
[353029433,1739495439741,-150.71,0.000137,2]
[353029434,1739495439750,-150.71,0.000137,2]
[353029435,1739495439760,-150.71,0.000137,2]
[353029436,1739495439769,-150.71,0.000137,2]
[353029437,1739495439779,-150.71,0.000137,2]
[353029438,1739495439789,-150.71,0.000137,2]
[353029439,1739495439798,-150.71,0.000137,2]
[353029440,1739495439808,-150.71,0.000137,2]
[353029441,1739495439817,-150.71,0.000137,2]
[353029442,1739495439828,-150.71,0.000137,2]
[353029443,1739495439838,-150.71,0.000137,2]
[353029444,1739495439848,-150.71,0.000137,2]
[353029445,1739495439858,-150.71,0.000137,2]
[353029446,1739495439868,-150.71,0.000137,2]
[353029447,1739495439878,-150.71,0.000137,2]
[353029448,1739495439888,-643.77,0.00013779,2]
[353029449,1739495439898,-643.77,0.00013779,2]
[353029450,1739495439908,-1419.57,0.00013779,2]
[353029451,1739495439918,-1419.57,0.00013779,2]
[353029452,1739495439928,-1419.57,0.00013779,2]
[353029453,1739495439937,-502.36438095,0.0001378,2]
[353029454,1739495439947,-1000.0,0.0001378,2]
[353029455,1739495439956,-1080.44,0.0001378,2]
[353029456,1739495439966,-500.0,0.0001378,2]
[353029457,1739495439975,-617.1,0.0001378,2]
[353029458,1739495439984,-500.0,0.0001378,2]
[353029459,1739495439994,-166.69536,0.0001378,2]
[353029460,1739495440003,-500.0,0.0001378,2]
[353029461,1739495440012,-500.0,0.0001378,2]
[353029462,1739495440022,-2796.01,0.0001378,2]
[353029463,1739495440032,-1240.46,0.0001378,2]
[353029464,1739495440041,-4077.5,0.0001378,2]
[353029465,1739495440051,-500.0,0.0001378,2]
[353029466,1739495440061,-500.0,0.0001378,2]
[353029467,1739495440071,-500.0,0.0001378,2]
[353029468,1739495440080,-1001.96,0.0001378,2]
[353029469,1739495440090,-16817.17,0.0001378,2]
[353029471,1739495440099,-500.0,0.0001378,2]
[353029472,1739495440109,-500.0,0.0001378,2]
[353029473,1739495440119,-500.0,0.0001378,2]
[353029474,1739495440128,-500.0,0.0001378,2]
[353029475,1739495440139,-500.0,0.0001378,2]
[353029476,1739495440149,-241.99,0.0001378,2]
[353029477,1739495440158,-697.07,0.0001378,2]
[353029479,1739495440168,-500.0,0.0001378,2]
[353029481,1739495440181,-1138.5,0.0001378,2]
[353029482,1739495440190,-500.0,0.0001378,2]
[353029483,1739495440200,-974.22,0.0001378,2]
[353029484,1739495440211,-500.0,0.0001378,2]
[353029486,1739495440222,-500.0,0.0001378,2]
[353029488,1739495440231,-1634.88,0.0001378,2]
[353029490,1739495440242,-500.0,0.0001378,2]
[353029492,1739495440252,-500.0,0.0001378,2]
[353029494,1739495440262,-500.0,0.0001378,2]
[353029496,1739495440271,-1295.44,0.0001378,2]
[353029498,1739495440281,-500.0,0.0001378,2]
[353029500,1739495440291,-500.0,0.0001378,2]
[353029502,1739495440301,-500.0,0.0001378,2]
[353029504,1739495440311,-500.0,0.0001378,2]
[353029506,1739495440321,-583.64,0.0001378,2]
[353029508,1739495440330,-5534.7,0.0001378,2]
[353029510,1739495440339,-330.06,0.0001378,2]
[353029513,1739495440349,-500.0,0.0001378,2]
[353029514,1739495440358,-500.0,0.0001378,2]
[353029516,1739495440368,-500.0,0.0001378,2]
[353029519,1739495440377,-500.0,0.0001378,2]
[353029521,1739495440387,-1149.07,0.0001378,2]
[353029523,1739495440396,-1685.87,0.0001378,2]
[353029525,1739495440405,-500.0,0.0001378,2]
[353029527,1739495440415,-168.24793455,0.00013781,2]
[353029529,1739495440425,-168.24943772,0.00013781,2]
[353029530,1739495440434,-183.48359096,0.00013803,2]
[353029532,1739495440443,-152.0,0.00013809,2]
[353029534,1739495440453,-643.77,0.00013862,2]
[353029536,1739495440462,-643.77,0.00013862,2]
[353029538,1739495440471,-1419.57,0.00013862,2]
[353029540,1739495440481,-1419.57,0.00013862,2]
[353029542,1739495440490,-322.71724852,0.00013863,2]
[353029544,1739495440500,-1080.44,0.00013863,2]
[353029546,1739495440510,-500.0,0.00013863,2]
[353029548,1739495440519,-500.0,0.00013863,2]
[353029550,1739495440528,-2796.01,0.00013863,2]
[353029552,1739495440538,-1240.46,0.00013863,2]
[353029554,1739495440547,-4077.5,0.00013863,2]
[353029556,1739495440557,-500.0,0.00013863,2]
[353029558,1739495440567,-1001.96,0.00013863,2]
[353029560,1739495440576,-16817.17,0.00013863,2]
[353029562,1739495440586,-500.0,0.00013863,2]
[353029564,1739495440596,-500.0,0.00013863,2]
[353029566,1739495440605,-500.0,0.00013863,2]
[353029568,1739495440616,-500.0,0.00013863,2]
[353029570,1739495440626,-332.48,0.00013863,2]
[353029572,1739495440636,-697.07,0.00013863,2]
[353029574,1739495440646,-500.0,0.00013863,2]
[353029577,1739495440656,-1138.5,0.00013863,2]
[353029579,1739495440666,-500.0,0.00013863,2]
[353029581,1739495440677,-974.22,0.00013863,2]
[353029583,1739495440686,-500.0,0.00013863,2]
[353029585,1739495440695,-500.0,0.00013863,2]
[353029587,1739495440705,-1634.88,0.00013863,2]
[353029589,1739495440714,-500.0,0.00013863,2]
[353029590,1739495440723,-500.0,0.00013863,2]
[353029592,1739495440732,-312.0,0.00013863,2]
[353029595,1739495440742,-1295.44,0.00013863,2]
[353029597,1739495440751,-500.0,0.00013863,2]
[353029599,1739495440761,-500.0,0.00013863,2]
[353029601,1739495440770,-500.0,0.00013863,2]
[353029602,1739495440779,-583.64,0.00013863,2]
[353029605,1739495440789,-5534.7,0.00013863,2]
[353029606,1739495440799,-500.0,0.00013863,2]
[353029608,1739495440809,-500.0,0.00013863,2]
[353029612,1739495440819,-1149.07,0.00013863,2]
[353029614,1739495440828,-1685.87,0.00013863,2]
[353029618,1739495440838,-500.0,0.00013863,2]
[353029620,1739495440848,-153.0,0.000139,2]
[353029622,1739495440857,-161.118796,0.0001392,5]
[353029626,1739495440868,-600.0,0.0001392,2]
[353029628,1739495440878,-183.48359096,0.00013927,2]
[353029629,1739495440887,-1419.57,0.00013943,2]
[353029632,1739495440896,-643.77,0.00013944,2]
[353029634,1739495440907,-643.77,0.00013944,2]
[353029636,1739495440916,-500.0,0.00013944,2]
[353029638,1739495440929,-500.0,0.00013944,2]
[353029640,1739495440938,-504.00303098,0.00013944,2]
[353029642,1739495440948,-500.0,0.00013944,2]
[353029644,1739495440958,-167.18991251,0.00013944,2]
[353029646,1739495440967,-500.0,0.00013944,2]
[353029648,1739495440976,-500.0,0.00013944,2]
[353029650,1739495440985,-500.0,0.00013944,2]
[353029652,1739495440994,-500.0,0.00013944,2]
[353029654,1739495441004,-500.0,0.00013944,2]
[353029656,1739495441013,-500.0,0.00013944,2]
[353029658,1739495441023,-500.0,0.00013944,2]
[353029660,1739495441032,-500.0,0.00013944,2]
[353029662,1739495441041,-162.20055896,0.00013944,2]
[353029664,1739495441050,-500.0,0.00013944,2]
[353029666,1739495441059,-500.0,0.00013944,2]
[353029668,1739495441069,-500.0,0.00013944,2]
[353029670,1739495441078,-500.0,0.00013944,2]
[353029672,1739495441087,-500.0,0.00013944,2]
[353029674,1739495441097,-610.0,0.00013944,2]
[353029675,1739495441106,-500.0,0.00013944,2]
[353029678,1739495441116,-500.0,0.00013944,2]
[353029679,1739495441125,-500.0,0.00013944,2]
[353029682,1739495441136,-500.0,0.00013944,2]
[353029684,1739495441145,-500.0,0.00013944,2]
[353029686,1739495441156,-500.0,0.00013944,2]
[353029688,1739495441165,-500.0,0.00013944,2]
[353029690,1739495441180,-500.0,0.00013944,2]
[353029692,1739495441189,-500.0,0.00013944,2]
[353029694,1739495441199,-500.0,0.00013944,2]
[353029696,1739495441209,-500.0,0.00013944,2]
[353029698,1739495441220,-386.26295073,0.00013944,2]
[353029700,1739495441230,-500.0,0.00013944,2]
[353029702,1739495441240,-500.0,0.00013944,2]
[353029704,1739495441250,-500.0,0.00013944,2]
[353029706,1739495441259,-500.0,0.00013944,2]
[353029708,1739495441271,-500.0,0.00013944,2]
[353029710,1739495441281,-500.0,0.00013944,2]
[353029712,1739495441291,-500.0,0.00013944,2]
[353029714,1739495441300,-500.0,0.00013944,2]
[353029716,1739495441310,-500.0,0.00013944,2]
[353029718,1739495441320,-500.0,0.00013944,2]
[353029720,1739495441330,-1419.57,0.00013944,2]
[353029722,1739495441339,-1419.57,0.00013944,2]
[353029724,1739495441348,-500.0,0.00013944,2]
[353029726,1739495441359,-500.0,0.00013944,2]
[353029728,1739495441369,-500.0,0.00013944,2]
[353029730,1739495441378,-500.0,0.00013944,2]
[353029732,1739495441387,-500.0,0.00013944,2]
[353029734,1739495441398,-1080.44,0.00013945,2]
[353029736,1739495441407,-500.0,0.00013945,2]
[353029738,1739495441416,-500.0,0.00013945,2]
[353029740,1739495441428,-2796.01,0.00013945,2]
[353029742,1739495441437,-1240.46,0.00013945,2]
[353029744,1739495441446,-4077.5,0.00013945,2]
[353029746,1739495441456,-500.0,0.00013945,2]
[353029748,1739495441465,-1001.96,0.00013945,2]
[353029750,1739495441475,-16817.17,0.00013945,2]
[353029752,1739495441484,-500.0,0.00013945,2]
[353029754,1739495441493,-500.0,0.00013945,2]
[353029756,1739495441502,-500.0,0.00013945,2]
[353029758,1739495441514,-697.07,0.00013945,2]
[353029760,1739495441523,-500.0,0.00013945,2]
[353029762,1739495441533,-1138.5,0.00013945,2]
[353029764,1739495441542,-500.0,0.00013945,2]
[353029766,1739495441551,-974.22,0.00013945,2]
[353029768,1739495441561,-500.0,0.00013945,2]
[353029770,1739495441572,-500.0,0.00013945,2]
[353029772,1739495441582,-1634.88,0.00013945,2]
[353029774,1739495441591,-500.0,0.00013945,2]
[353029776,1739495441601,-500.0,0.00013945,2]
[353029778,1739495441610,-1295.44,0.00013945,2]
[353029780,1739495441620,-500.0,0.00013945,2]